fUSD/lending_fUSD_20250814
["ID","MTS","AMOUNT","RATE_DAILY","PERIOD"]
[379120871,1755151884386,-151.0,0.00040294,30]
[379120872,1755151884407,-166.934702,0.00040294,30]
[379120873,1755151884418,-166.934702,0.00040294,30]
[379120874,1755151884428,-151.0,0.00040294,30]
[379120875,1755151884438,-249.308564,0.00040294,30]
[379120876,1755151884448,-306.97218,0.00040294,30]
[379120877,1755151884457,-306.97218,0.00040294,30]
[379120878,1755151884467,-557.380901,0.00040294,30]
[379120879,1755151884477,-557.380901,0.00040294,30]
[379120880,1755151884487,-557.380901,0.00040294,30]
[379120881,1755151884497,-557.380901,0.00040294,30]
[379120882,1755151884507,-557.380901,0.00040294,30]
[379120883,1755151884516,-557.380901,0.00040294,30]
[379120884,1755151884526,-557.380901,0.00040294,30]
[379120885,1755151884535,-557.380901,0.00040294,30]
[379120886,1755151884545,-557.380901,0.00040294,30]
[379120887,1755151884554,-557.380901,0.00040294,30]
[379120888,1755151884563,-557.380901,0.00040294,30]
[379120889,1755151884573,-557.380901,0.00040294,30]
[379120890,1755151884583,-557.380901,0.00040294,30]
[379120891,1755151884593,-557.380901,0.00040294,30]
[379120892,1755151884602,-1649.284686,0.00040294,30]
[379120893,1755151884612,-1649.284686,0.00040294,30]
[379120894,1755151884622,-1649.284686,0.00040294,30]
[379120895,1755151884632,-1649.284686,0.00040294,30]
[379120896,1755151884641,-749.204938,0.00040294,30]
[379120897,1755151884650,-749.204938,0.00040294,30]
[379120898,1755151884660,-749.204938,0.00040294,30]
[379120899,1755151884669,-749.204938,0.00040294,30]
[379120900,1755151884677,-417.712432,0.00040294,30]
[379120901,1755151884687,-417.712432,0.00040294,30]
[379120902,1755151884696,-262.055634,0.00040294,30]
[379120903,1755151884707,-262.055634,0.00040294,30]
[379120904,1755151884716,-262.055634,0.00040294,30]
[379120905,1755151884725,-262.055634,0.00040294,30]
[379120906,1755151884735,-316.80956,0.00040294,30]
[379120907,1755151884745,-316.80956,0.00040294,30]
[379120908,1755151884754,-281.039896,0.00040294,30]
[379120909,1755151884764,-316.80956,0.00040294,30]
[379120910,1755151884773,-316.80956,0.00040294,30]
[379120911,1755151884783,-659.962784,0.00040294,30]
[379120912,1755151884792,-659.962784,0.00040294,30]
[379120913,1755151884801,-659.962784,0.00040294,30]
[379120914,1755151884810,-659.962784,0.00040294,30]
[379120915,1755151884819,-257.48,0.00040294,30]
[379120916,1755151884829,-257.48,0.00040294,30]
[379120917,1755151884839,-257.48,0.00040294,30]
[379120918,1755151884849,-257.48,0.00040294,30]
[379120919,1755151884858,-183.758308,0.00040294,30]
[379120920,1755151884868,-183.758308,0.00040294,30]
[379120921,1755151884878,-183.758308,0.00040294,30]
[379120922,1755151884887,-183.758308,0.00040294,30]
[379120923,1755151884897,-296.66023,0.00040294,30]
[379120924,1755151884906,-296.66023,0.00040294,30]
[379120925,1755151884916,-296.66023,0.00040294,30]
[379120926,1755151884929,-296.66023,0.00040294,30]
[379120927,1755151884938,-175.795295,0.00040294,30]
[379120928,1755151884949,-175.795295,0.00040294,30]
[379120929,1755151884958,-175.795295,0.00040294,30]
[379120930,1755151884969,-175.795295,0.00040294,30]
[379120931,1755151884978,-224.446214,0.00040294,30]
[379120932,1755151884987,-224.446214,0.00040294,30]
[379120933,1755151884997,-224.446214,0.00040294,30]
[379120934,1755151885009,-224.446214,0.00040294,30]
[379120935,1755151885019,-192.957596,0.00040294,30]
[379120936,1755151885029,-192.957596,0.00040294,30]
[379120937,1755151885040,-192.957596,0.00040294,30]
[379120938,1755151885051,-192.957596,0.00040294,30]
[379120939,1755151885060,-151.0,0.00040294,30]
[379120940,1755151885071,-151.0,0.00040294,30]
[379120941,1755151885082,-151.0,0.00040294,30]
[379120942,1755151885091,-151.0,0.00040294,30]
[379120943,1755151885100,-967.080589,0.00040294,30]
[379120944,1755151885109,-967.080589,0.00040294,30]
[379120945,1755151885119,-967.080589,0.00040294,30]
[379120946,1755151885129,-967.080589,0.00040294,30]
[379120947,1755151885138,-163.600557,0.00040294,30]
[379120948,1755151885147,-163.600557,0.00040294,30]
[379120949,1755151885156,-163.600557,0.00040294,30]
[379120950,1755151885166,-163.600557,0.00040294,30]
[379120951,1755151885175,-151.0,0.00040294,30]
[379120952,1755151885184,-151.0,0.00040294,30]
[379120953,1755151885194,-151.0,0.00040294,30]
[379120954,1755151885203,-239.75768,0.00040294,30]
[379120955,1755151885213,-151.0,0.00040294,30]
[379120956,1755151885222,-151.0,0.00040294,30]
[379120957,1755151885232,-182.924226,0.00040294,30]
[379120958,1755151885241,-182.924226,0.00040294,30]
[379120959,1755151885250,-182.924226,0.00040294,30]
[379120960,1755151885260,-182.924226,0.00040294,30]
[379120961,1755151885269,-362.941334,0.00040294,30]
[379120962,1755151885279,-362.941334,0.00040294,30]
[379120963,1755151885289,-362.941334,0.00040294,30]
[379120964,1755151885300,-362.941334,0.00040294,30]
[379120965,1755151885309,-265.916978,0.00040294,30]
[379120966,1755151885319,-265.916978,0.00040294,30]
[379120967,1755151885328,-265.916978,0.00040294,30]
[379120968,1755151885340,-265.916978,0.00040294,30]
[379120969,1755151885350,-840.643712,0.00040294,30]
[379120970,1755151885360,-840.643712,0.00040294,30]
[379120971,1755151885369,-840.643712,0.00040294,30]
[379120972,1755151885378,-840.643712,0.00040294,30]
[379120973,1755151885387,-151.0,0.00040294,30]
[379120974,1755151885396,-151.0,0.00040294,30]
[379120975,1755151885406,-151.0,0.00040294,30]
[379120976,1755151885415,-151.0,0.00040294,30]
[379120977,1755151885424,-151.0,0.00040294,30]
[379120978,1755151885433,-151.0,0.00040294,30]
[379120979,1755151885442,-151.0,0.00040294,30]
[379120980,1755151885452,-219.308743,0.00040294,30]
[379120981,1755151885462,-220.873943,0.00040294,30]
[379120982,1755151885471,-220.873943,0.00040294,30]
[379120983,1755151885480,-151.0,0.00040294,30]
[379120984,1755151885493,-151.0,0.00040294,30]
[379120985,1755151885505,-151.0,0.00040294,30]
[379120986,1755151885515,-220.873943,0.00040294,30]
[379120987,1755151885525,-220.873943,0.00040294,30]
[379120988,1755151885534,-311.140994,0.00040294,30]
[379120989,1755151885543,-311.140994,0.00040294,30]
[379120990,1755151885553,-311.140994,0.00040294,30]
[379120991,1755151885561,-311.140991,0.00040294,30]
[379120992,1755151885570,-151.0,0.00040294,30]
[379120993,1755151885580,-151.0,0.00040294,30]
[379120994,1755151885589,-151.0,0.00040294,30]
[379120995,1755151885599,-151.0,0.00040294,30]
[379120996,1755151885608,-151.0,0.00040294,30]
[379120997,1755151885617,-151.0,0.00040294,30]
[379120998,1755151885627,-285.023707,0.00040294,30]
[379120999,1755151885636,-285.023707,0.00040294,30]
[379121000,1755151885645,-285.023707,0.00040294,30]
[379121001,1755151885654,-285.023707,0.00040294,30]
[379121002,1755151885664,-285.023707,0.00040294,30]
[379121003,1755151885673,-285.023702,0.00040294,30]
[379121004,1755151885683,-151.0,0.00040294,30]
[379121005,1755151885692,-290.964765,0.00040294,30]
[379121006,1755151885702,-290.964765,0.00040294,30]
[379121007,1755151885712,-290.964765,0.00040294,30]
[379121008,1755151885721,-290.964765,0.00040294,30]
[379121009,1755151885730,-290.964765,0.00040294,30]
[379121010,1755151885740,-290.964768,0.00040294,30]
[379121011,1755151885749,-329.139566,0.00040294,30]
[379121012,1755151885759,-329.139566,0.00040294,30]
[379121013,1755151885767,-329.139566,0.00040294,30]
[379121014,1755151885777,-329.139566,0.00040294,30]
[379121015,1755151885786,-329.139566,0.00040294,30]
[379121016,1755151885797,-329.139566,0.00040294,30]
[379121017,1755151885816,-151.0,0.00040294,30]
[379121018,1755151885829,-210.980776,0.00040294,30]
[379121019,1755151885845,-210.980785,0.00040294,30]
[379121020,1755151885860,-529.790785,0.00040294,30]
[379121021,1755151885875,-529.790778,0.00040294,30]
[379121022,1755151885891,-318.567553,0.00040294,30]
[379121023,1755151885903,-318.567545,0.00040294,30]
[379121024,1755151885919,-221.086175,0.00040294,30]
[379121025,1755151885936,-221.086177,0.00040294,30]
[379121026,1755151885951,-155.888434,0.00040294,30]
[379121027,1755151885967,-155.88843,0.00040294,30]
[379121028,1755151885982,-151.0,0.00040294,30]
[379121029,1755151885996,-151.0,0.00040294,30]
[379121030,1755151886013,-151.0,0.00040294,30]
[379121031,1755151886027,-239.641925,0.00040294,30]
[379121032,1755151886041,-239.641925,0.00040294,30]
[379121033,1755151886056,-239.641925,0.00040294,30]
[379121034,1755151886071,-239.641925,0.00040294,30]
[379121035,1755151886084,-239.641925,0.00040294,30]
[379121036,1755151886096,-239.641918,0.00040294,30]
[379121037,1755151886108,-180.869558,0.00040294,30]
[379121038,1755151886125,-180.869561,0.00040294,30]
[379121039,1755151886138,-874.933004,0.00040294,30]
[379121040,1755151886150,-874.933004,0.00040294,30]
[379121041,1755151886162,-874.933004,0.00040294,30]
[379121042,1755151886176,-874.933004,0.00040294,30]
[379121043,1755151886188,-874.933005,0.00040294,30]
[379121044,1755151886200,-151.0,0.00040294,14]
[379121045,1755151886213,-454.7,0.00040294,30]
[379121046,1755151886226,-454.7,0.00040294,30]
[379121047,1755151886238,-1660.544591,0.00040294,30]
[379121048,1755151886252,-1660.544591,0.00040294,30]
[379121049,1755151886265,-1660.544591,0.00040294,30]
[379121050,1755151886277,-1660.544591,0.00040294,30]
[379121051,1755151886290,-1660.544591,0.00040294,30]
[379121052,1755151886302,-1660.5446,0.00040294,30]
[379121053,1755151886315,-408.661415,0.00040294,30]
[379121054,1755151886327,-408.661407,0.00040294,30]
[379121055,1755151886340,-168.221032,0.00040295,30]
[379121056,1755151886352,-168.221032,0.00040295,30]
[379121057,1755151886365,-168.221032,0.00040295,30]
[379121058,1755151886377,-168.221032,0.00040295,30]
[379121059,1755151886391,-168.221032,0.00040295,30]
[379121060,1755151886405,-168.221032,0.00040295,30]
[379121061,1755151886416,-168.221032,0.00040295,30]
[379121062,1755151886430,-168.221032,0.00040295,30]
[379121063,1755151886442,-168.221032,0.00040295,30]
[379121064,1755151886454,-168.221032,0.00040295,30]
[379121065,1755151886467,-168.221032,0.00040295,30]
[379121066,1755151886479,-168.221032,0.00040295,30]
[379121067,1755151886492,-168.221032,0.00040295,30]
[379121068,1755151886505,-168.221024,0.00040295,30]
[379121069,1755151886518,-358.504542,0.00040295,30]
[379121070,1755151886531,-358.504542,0.00040295,30]
[379121071,1755151886544,-358.504542,0.00040295,30]
[379121072,1755151886557,-358.504542,0.00040295,30]
[379121073,1755151886570,-358.504542,0.00040295,30]
[379121074,1755151886582,-358.504542,0.00040295,30]
[379121075,1755151886594,-358.504542,0.00040295,30]
[379121076,1755151886609,-358.504542,0.00040295,30]
[379121077,1755151886621,-358.504542,0.00040295,30]
[379121078,1755151886635,-358.504542,0.00040295,30]
[379121079,1755151886648,-358.504542,0.00040295,30]
[379121080,1755151886661,-358.504542,0.00040295,30]
[379121081,1755151886674,-358.504542,0.00040295,30]
[379121082,1755151886687,-358.504546,0.00040295,30]
[379121083,1755151886700,-151.0,0.00040295,30]
[379121084,1755151886713,-151.0,0.00040295,30]
[379121085,1755151886725,-151.0,0.00040295,30]
[379121086,1755151886738,-151.0,0.00040295,30]
[379121087,1755151886750,-202.90188634,0.00040295,30]
[379121088,1755151886763,-561.269068,0.00040295,30]
[379121089,1755151886775,-561.269068,0.00040295,30]
[379121090,1755151886787,-561.269068,0.00040295,30]
[379121091,1755151886800,-561.269068,0.00040295,30]
[379121092,1755151886812,-561.269068,0.00040295,30]
[379121093,1755151886825,-561.269068,0.00040295,30]
[379121094,1755151886838,-561.269068,0.00040295,30]
[379121095,1755151886851,-561.269068,0.00040295,30]
[379121096,1755151886864,-561.269068,0.00040295,30]
[379121097,1755151886877,-561.269068,0.00040295,30]
[379121098,1755151886889,-561.269068,0.00040295,30]
[379121099,1755151886901,-561.269068,0.00040295,30]
[379121100,1755151886914,-561.269068,0.00040295,30]
[379121101,1755151886930,-561.269062,0.00040295,30]
[379121102,1755151886943,-1038.79933014,0.000403,120]
[379121103,1755151886955,-1038.79933012,0.000403,120]
[379121104,1755151886967,-1038.79933012,0.000403,120]
[379121105,1755151886979,-1038.79933012,0.000403,120]
[379121106,1755151886991,-1038.79933012,0.000403,120]
[379121107,1755151887004,-1038.79933012,0.000403,120]
[379121108,1755151887017,-1038.79933012,0.000403,120]
[379121109,1755151887029,-1038.79933012,0.000403,120]
[379121110,1755151887042,-1038.79933012,0.000403,120]
[379121111,1755151887054,-1038.79933012,0.000403,120]
[379121112,1755151887072,-1038.79933012,0.000403,120]
[379121113,1755151887091,-1038.79933012,0.000403,120]
[379121114,1755151887111,-1038.79933012,0.000403,120]
[379121115,1755151887128,-1038.79933012,0.000403,120]
[379121116,1755151887144,-1038.79933012,0.000403,120]
[379121117,1755151887160,-1038.79933012,0.000403,120]
[379121118,1755151887176,-1038.79933012,0.000403,120]
[379121119,1755151887207,-1038.79933012,0.000403,120]
[379121120,1755151887221,-1038.79933012,0.000403,120]
[379121121,1755151887236,-823.15953,0.0004037,4]
[379121122,1755151887250,-168.0,0.00040378,120]
[379121123,1755151887264,-1011.09,0.000404,14]
[379121124,1755151887278,-1000.0,0.000404,30]
[379121125,1755151887292,-201.13224061,0.000404,120]
[379121126,1755151887306,-200.0,0.000404,7]
[379121127,1755151887319,-200.0,0.000404,7]
[379121128,1755151887333,-28487.0194262,0.0004044,2]
[379121129,1755151887345,-168.0,0.00040447,2]
[379121130,1755151887359,-1000.0,0.0004047,3]
[379121131,1755151887373,-500.0,0.0004047,3]
[379121132,1755151887386,-502.15573627,0.00040521,5]
[379121133,1755151887400,-2413.3327997,0.00040523,2]
[379121134,1755151887413,-151.0,0.00040523,30]
[379121135,1755151887427,-151.0,0.00040523,30]
[379121136,1755151887440,-151.0,0.00040523,30]
[379121137,1755151887454,-359.819535,0.00040523,20]
[379121138,1755151887467,-359.819535,0.00040523,20]
[379121139,1755151887488,-151.0,0.00040524,30]
[379121140,1755151887505,-151.0,0.00040524,30]
[379121141,1755151887521,-151.0,0.00040524,30]
[379121142,1755151887538,-185.246778,0.00040524,30]
[379121143,1755151887553,-185.246778,0.00040524,30]
[379121144,1755151887567,-152.250309,0.00040524,30]
[379121145,1755151887582,-151.0,0.00040524,30]
[379121146,1755151887595,-211.648967,0.00040524,30]
[379121147,1755151887608,-211.648967,0.00040524,30]
[379121148,1755151887621,-151.0,0.00040524,30]
[379121149,1755151887634,-151.0,0.00040524,30]
[379121150,1755151887648,-158.636103,0.00040524,30]
[379121151,1755151887665,-158.636103,0.00040524,30]
[379121152,1755151887678,-151.0,0.00040524,30]
[379121153,1755151887690,-297.029936,0.00040524,30]
[379121154,1755151887703,-151.0,0.00040524,30]
[379121155,1755151887715,-297.029936,0.00040524,30]
[379121156,1755151887728,-355.362612,0.00040524,30]
[379121157,1755151887740,-355.362612,0.00040524,30]
[379121158,1755151887753,-792.269419,0.00040524,30]
[379121159,1755151887766,-151.0,0.00040525,30]
[379121160,1755151887778,-151.0,0.00040525,30]
[379121161,1755151887790,-151.0,0.00040525,30]
[379121162,1755151887803,-151.0,0.00040525,30]
[379121163,1755151887815,-151.357651,0.00040525,30]
[379121164,1755151887828,-167.160009,0.00040525,30]
[379121165,1755151887840,-167.160009,0.00040525,30]
[379121166,1755151887853,-167.160009,0.00040525,30]
[379121167,1755151887865,-167.160009,0.00040525,30]
[379121168,1755151887878,-167.160009,0.00040525,30]
[379121169,1755151887889,-167.160009,0.00040525,30]
[379121170,1755151887906,-167.160009,0.00040525,30]
[379121171,1755151887919,-167.160009,0.00040525,30]
[379121172,1755151887936,-167.160009,0.00040525,30]
[379121173,1755151887949,-167.160009,0.00040525,30]
[379121174,1755151887962,-151.0,0.00040525,30]
[379121175,1755151887975,-151.0,0.00040525,30]
[379121176,1755151887988,-151.0,0.00040525,30]
[379121177,1755151888002,-151.0,0.00040525,30]
[379121178,1755151888016,-151.0,0.00040525,30]
[379121179,1755151888029,-211.648967,0.00040525,30]
[379121180,1755151888041,-211.648967,0.00040525,30]
[379121181,1755151888054,-211.648967,0.00040525,30]
[379121182,1755151888067,-211.648967,0.00040525,30]
[379121183,1755151888078,-211.648967,0.00040525,30]
[379121184,1755151888091,-211.648967,0.00040525,30]
[379121185,1755151888104,-211.648967,0.00040525,30]
[379121186,1755151888116,-211.648967,0.00040525,30]
[379121187,1755151888130,-211.648967,0.00040525,30]
[379121188,1755151888142,-211.648967,0.00040525,30]
[379121189,1755151888154,-151.0,0.00040525,30]
[379121190,1755151888168,-151.0,0.00040525,30]
[379121191,1755151888181,-151.0,0.00040525,30]
[379121192,1755151888193,-151.0,0.00040525,30]
[379121193,1755151888204,-151.0,0.00040525,30]
[379121194,1755151888216,-151.0,0.00040525,30]
[379121195,1755151888229,-284.134554,0.00040525,30]
[379121196,1755151888242,-151.0,0.00040525,30]
[379121197,1755151888254,-151.0,0.00040525,30]
[379121198,1755151888266,-151.0,0.00040525,30]
[379121199,1755151888278,-151.0,0.00040525,30]
[379121200,1755151888290,-151.0,0.00040525,30]
[379121201,1755151888303,-355.362612,0.00040525,30]
[379121202,1755151888315,-355.362612,0.00040525,30]
[379121203,1755151888327,-355.362612,0.00040525,30]
[379121204,1755151888338,-355.362612,0.00040525,30]
[379121205,1755151888349,-355.362612,0.00040525,30]
[379121206,1755151888361,-355.362612,0.00040525,30]
[379121207,1755151888373,-355.362612,0.00040525,30]
[379121208,1755151888384,-355.362612,0.00040525,30]
[379121209,1755151888397,-355.362612,0.00040525,30]
[379121210,1755151888408,-355.362612,0.00040525,30]
[379121211,1755151888419,-151.0,0.00040525,30]
[379121212,1755151888432,-151.0,0.0004053,30]
[379121213,1755151888443,-277.032834,0.0004053,30]
[379121214,1755151888456,-177.158252,0.0004053,30]
[379121215,1755151888467,-177.158252,0.0004053,30]
[379121216,1755151888479,-177.158252,0.0004053,30]
[379121217,1755151888491,-177.158252,0.0004053,30]
[379121218,1755151888502,-173.572656,0.00040531,30]
[379121219,1755151888514,-151.0,0.00040531,30]
[379121220,1755151888526,-151.0,0.00040531,30]
[379121221,1755151888538,-151.0,0.00040531,30]
[379121222,1755151888549,-359.819535,0.00040531,20]
[379121223,1755151888561,-359.819535,0.00040531,20]
[379121224,1755151888573,-151.0,0.00040532,30]
[379121225,1755151888585,-151.0,0.00040532,30]
[379121226,1755151888596,-151.0,0.00040532,30]
[379121227,1755151888609,-151.0,0.00040532,30]
[379121228,1755151888621,-151.0,0.00040532,30]
[379121229,1755151888632,-231.696332,0.00040532,30]
[379121230,1755151888645,-151.0,0.00040532,30]
[379121231,1755151888657,-151.0,0.00040532,30]
[379121232,1755151888668,-151.0,0.00040532,30]
[379121233,1755151888680,-151.0,0.00040532,30]
[379121234,1755151888691,-291.870743,0.00040532,30]
[379121235,1755151888702,-185.246778,0.00040532,30]
[379121236,1755151888714,-185.246778,0.00040532,30]
[379121237,1755151888725,-185.246778,0.00040532,30]
[379121238,1755151888737,-185.246778,0.00040532,30]
[379121239,1755151888749,-185.246778,0.00040532,30]
[379121240,1755151888760,-185.246778,0.00040532,30]
[379121241,1755151888772,-233.411069,0.00040532,30]
[379121242,1755151888783,-233.411069,0.00040532,30]
[379121243,1755151888795,-151.0,0.00040532,30]
[379121244,1755151888807,-250.397214,0.00040532,30]
[379121245,1755151888818,-250.397214,0.00040532,30]
[379121246,1755151888830,-252.828245,0.00040532,30]
[379121247,1755151888841,-1500.0,0.00040532,28]
[379121248,1755151888854,-1500.0,0.00040532,28]
[379121249,1755151888865,-1500.0,0.00040532,28]
[379121250,1755151888876,-813.939348,0.00040532,28]
[379121251,1755151888888,-306.97218,0.00040532,30]
[379121252,1755151888899,-306.97218,0.00040532,30]
[379121253,1755151888911,-557.380901,0.00040532,30]
[379121254,1755151888924,-557.380901,0.00040532,30]
[379121255,1755151888938,-417.712432,0.00040532,30]
[379121256,1755151888949,-417.712432,0.00040532,30]
[379121257,1755151888961,-151.0,0.00040533,30]
[379121258,1755151888981,-151.0,0.00040533,30]
[379121259,1755151888993,-151.526153,0.00040533,7]
[379121260,1755151889007,-195.796584,0.00040533,30]
[379121261,1755151889019,-151.0,0.00040533,30]
[379121262,1755151889031,-185.246778,0.00040533,30]
[379121263,1755151889043,-185.246778,0.00040533,30]
[379121264,1755151889055,-173.411157,0.00040533,30]
[379121265,1755151889066,-211.648967,0.00040533,30]
[379121266,1755151889077,-211.648967,0.00040533,30]
[379121267,1755151889089,-151.0,0.00040533,30]
[379121268,1755151889101,-298.482921,0.00040533,30]
[379121269,1755151889112,-158.636103,0.00040533,30]
[379121270,1755151889124,-158.636103,0.00040533,30]
[379121271,1755151889136,-158.636103,0.00040533,30]
[379121272,1755151889148,-158.636103,0.00040533,30]
[379121273,1755151889160,-158.636103,0.00040533,30]
[379121274,1755151889171,-158.636103,0.00040533,30]
[379121275,1755151889184,-158.636103,0.00040533,30]
[379121276,1755151889195,-158.636103,0.00040533,30]
[379121277,1755151889207,-158.636103,0.00040533,30]
[379121278,1755151889218,-158.636103,0.00040533,30]
[379121279,1755151889230,-158.636103,0.00040533,30]
[379121280,1755151889242,-158.636103,0.00040533,30]
[379121281,1755151889253,-158.636103,0.00040533,30]
[379121282,1755151889266,-158.636103,0.00040533,30]
[379121283,1755151889280,-151.0,0.00040533,30]
[379121284,1755151889294,-151.0,0.00040533,30]
[379121285,1755151889309,-151.0,0.00040533,30]
[379121286,1755151889327,-151.0,0.00040533,30]
[379121287,1755151889339,-151.0,0.00040533,30]
[379121288,1755151889352,-151.0,0.00040533,30]
[379121289,1755151889363,-151.0,0.00040533,30]
[379121290,1755151889376,-151.0,0.00040533,30]
[379121291,1755151889387,-297.029936,0.00040533,30]
[379121292,1755151889399,-297.029936,0.00040533,30]
[379121293,1755151889410,-151.0,0.00040533,30]
[379121294,1755151889422,-297.029936,0.00040533,30]
[379121295,1755151889434,-151.0,0.00040533,30]
[379121296,1755151889446,-297.029936,0.00040533,30]
[379121297,1755151889458,-151.0,0.00040533,30]
[379121298,1755151889470,-297.029936,0.00040533,30]
[379121299,1755151889482,-151.0,0.00040533,30]
[379121300,1755151889494,-172.794487,0.00040533,30]
[379121301,1755151889505,-297.029936,0.00040533,30]
[379121302,1755151889516,-297.029936,0.00040533,30]
[379121303,1755151889529,-297.029936,0.00040533,30]
[379121304,1755151889541,-297.029936,0.00040533,30]
[379121305,1755151889552,-297.029936,0.00040533,30]
[379121306,1755151889564,-297.029936,0.00040533,30]
[379121307,1755151889575,-297.029946,0.00040533,30]
[379121308,1755151889588,-355.362612,0.00040533,30]
[379121309,1755151889601,-355.362612,0.00040533,30]
[379121310,1755151889615,-151.0,0.00040533,30]
[379121311,1755151889628,-151.0,0.00040533,30]
[379121312,1755151889641,-151.0,0.00040533,30]
[379121313,1755151889655,-359.819535,0.00040533,20]
[379121314,1755151889668,-359.819535,0.00040533,20]
[379121315,1755151889681,-792.269418,0.00040533,30]
[379121316,1755151889694,-151.0,0.00040533,30]
[379121317,1755151889707,-151.0,0.00040533,30]
[379121318,1755151889721,-151.0,0.00040533,30]
[379121319,1755151889733,-152.454067,0.00040533,30]
[379121320,1755151889746,-166.934712,0.00040533,30]
[379121321,1755151889758,-1649.284686,0.00040533,30]
[379121322,1755151889771,-1649.284694,0.00040533,30]
[379121323,1755151889784,-749.204938,0.00040533,30]
[379121324,1755151889798,-749.204948,0.00040533,30]
[379121325,1755151889811,-262.055634,0.00040533,30]
[379121326,1755151889824,-262.055634,0.00040533,30]
[379121327,1755151889836,-316.80956,0.00040533,30]
[379121328,1755151889850,-316.809564,0.00040533,30]
[379121329,1755151889863,-659.962784,0.00040533,30]
[379121330,1755151889876,-659.962784,0.00040533,30]
[379121331,1755151889890,-257.48,0.00040533,30]
[379121332,1755151889903,-257.48,0.00040533,30]
[379121333,1755151889916,-183.758308,0.00040533,30]
[379121334,1755151889932,-183.758315,0.00040533,30]
[379121335,1755151889945,-296.66023,0.00040533,30]
[379121336,1755151889958,-296.66023,0.00040533,30]
[379121337,1755151889972,-175.795295,0.00040533,30]
[379121338,1755151889985,-175.795297,0.00040533,30]
[379121339,1755151889998,-224.446214,0.00040533,30]
[379121340,1755151890012,-224.446214,0.00040533,30]
[379121341,1755151890025,-192.957596,0.00040533,30]
[379121342,1755151890038,-192.957596,0.00040533,30]
[379121343,1755151890052,-151.0,0.00040533,30]
[379121344,1755151890065,-151.0,0.00040533,30]
[379121345,1755151890078,-967.080589,0.00040533,30]
[379121346,1755151890091,-967.080583,0.00040533,30]
[379121347,1755151890103,-163.600557,0.00040533,30]
[379121348,1755151890116,-163.600557,0.00040533,30]
[379121349,1755151890130,-151.0,0.00040533,30]
[379121350,1755151890143,-151.0,0.00040533,30]
[379121351,1755151890156,-182.924226,0.00040533,30]
[379121352,1755151890169,-182.924226,0.00040533,30]
[379121353,1755151890182,-362.941334,0.00040533,30]
[379121354,1755151890195,-362.941334,0.00040533,30]
[379121355,1755151890209,-265.916978,0.00040533,30]
[379121356,1755151890222,-265.916978,0.00040533,30]
[379121357,1755151890234,-840.643712,0.00040533,30]
[379121358,1755151890247,-840.643712,0.00040533,30]
[379121359,1755151890261,-220.873943,0.00040533,30]
[379121360,1755151890274,-220.873952,0.00040533,30]
[379121361,1755151890287,-167.160009,0.00040535,30]
[379121362,1755151890300,-167.160009,0.00040535,30]
[379121363,1755151890313,-151.0,0.00040535,30]
[379121364,1755151890327,-607.0,0.00040548,15]
[379121365,1755151890341,-150.0,0.00040548,15]
[379121366,1755151890356,-350.0,0.00040548,15]
[379121367,1755151890369,-500.0,0.00040548,30]
[379121368,1755151890382,-151.0,0.00040562,30]
[379121369,1755151890396,-151.0,0.00040562,30]
[379121370,1755151890409,-151.0,0.00040562,30]